bitfinex-derivatives/quotes_ETHF0:USTF0_20210406
["timestamp","ask_amount","ask_price","bid_price","bid_amount"]
[1617703342042,76.0776,2110.4,2109.7,5.95697094]
[1617703342446,2.90695,2109.8,2109.7,5.95697094]
[1617703342651,2.90695,2109.8,2109.7,0.942]
[1617703343047,2.90695,2109.8,2109.7,5.95697148]
[1617703343448,2.90695,2109.8,2109.7,5.01497148]
[1617703344254,2.90695,2109.8,2109.6,2.90695]
[1617703344549,2.90695,2109.8,2109.6,9.99482409]
[1617703345356,2.90695,2109.8,2109.6,9.03632409]
[1617703347056,2.90695,2109.8,2109.7,5.01416881]
[1617703347455,2.90695,2109.8,2109.6,2.90695]
[1617703347655,5.47135,2109.8,2109.6,2.90695]
[1617703347856,5.47135,2109.8,2109.6,7.9212587]
[1617703348156,5.47135,2109.8,2109.6,2.90695]
[1617703349955,2.90695,2109.8,2109.6,2.90695]
[1617703350858,2.90695,2109.8,2109.6,3.85545]
[1617703351881,2.90695,2109.8,2109.6,2.90695]
[1617703352058,2.90695,2109.8,2109.6,7.92156551]
[1617703354164,5.45345,2109.8,2109.6,7.92156551]
[1617703355761,2.90695,2109.8,2109.6,7.92156551]
[1617703357362,5.39305,2109.8,2109.6,8.86836551]
[1617703357567,5.39305,2109.8,2109.6,7.92156551]
[1617703357764,5.39305,2109.8,2109.6,7.92146442]
[1617703358368,2.90695,2109.8,2109.6,2.90695]
[1617703359568,2.90695,2109.8,2109.6,3.86795]
[1617703359769,2.90695,2109.8,2109.6,2.90695]
[1617703359969,5.23615,2109.8,2109.6,2.90695]
[1617703360670,6.19155,2109.8,2109.6,2.90695]
[1617703360871,6.19155,2109.8,2109.6,3.84085]
[1617703361771,5.23615,2109.8,2109.6,2.90695]
[1617703362074,2.90695,2109.8,2109.6,2.90695]
[1617703363673,4.89065,2109.8,2109.6,2.90695]
[1617703364575,4.89065,2109.8,2109.6,3.84605]
[1617703365171,2.90695,2109.8,2109.6,3.84605]
[1617703366675,2.90695,2109.8,2109.6,2.90695]
[1617703367477,2.90695,2109.8,2109.6,7.92204971]
[1617703367894,2.90695,2109.8,2109.6,8.87434971]
[1617703369179,2.90695,2109.8,2109.6,3.85925]
[1617703369782,2.90695,2109.8,2109.6,11.17984463]
[1617703369979,2.90695,2109.8,2109.6,10.22754463]
[1617703370485,2.90695,2109.8,2109.7,5.01390188]
[1617703371380,2.90695,2109.8,2109.7,5.95350188]
[1617703371581,2.90695,2109.8,2109.7,0.9396]
[1617703371825,2.90695,2109.8,2109.6,7.92087682]
[1617703372482,2.90695,2109.8,2109.6,2.90695]
[1617703373283,2.90695,2109.8,2109.6,3.84545]
[1617703373483,2.90695,2109.8,2109.6,2.90695]
[1617703374584,2.90695,2109.8,2109.6,3.84545]
[1617703375302,2.90695,2109.8,2109.6,2.90695]
[1617703376288,2.90695,2109.8,2109.6,3.84905]
[1617703376790,2.90695,2109.8,2109.6,2.90695]
[1617703377889,5.87175,2109.8,2109.6,2.90695]
[1617703380994,35.87175,2109.8,2109.6,2.90695]
[1617703381194,35.87175,2109.8,2109.3,5.01409936]
[1617703381400,35.87175,2109.8,2109.3,4.41369936]
[1617703381595,35.87175,2109.8,2108.8,6.12929684]
[1617703381796,35.87175,2109.8,2108.7,6.12940812]
[1617703382807,32.9648,2109.8,2109.1,2.90695]
[1617703383619,32.9648,2109.8,2108.7,6.12940812]
[1617703384098,32.9648,2109.8,2108.6,6.12971914]
[1617703384298,30.0,2109.6,2108.6,6.12971914]
[1617703384498,73.3243,2109.0,2108.5,6.13013323]
[1617703384699,2.90695,2108.6,2108.5,6.13013323]
[1617703384921,30.0,2108.5,2108.2,6.12101435]
[1617703385135,32.8181,2108.5,2108.2,6.12101435]
[1617703385398,32.8181,2108.5,2107.8,1.0]
[1617703386702,32.8181,2108.5,2107.9,2.90695]
[1617703387307,2.8181,2108.5,2107.9,2.90695]
[1617703388807,2.90695,2108.0,2107.9,2.90695]
[1617703389008,2.90695,2108.0,2107.8,1.0]
[1617703389208,5.24705,2108.0,2107.8,1.0]
[1617703390908,2.90695,2108.0,2107.8,1.0]
[1617703392210,2.90695,2108.0,2107.8,6.01107087]
[1617703392811,2.90695,2108.0,2107.9,2.90695]
[1617703393211,2.90695,2108.0,2107.8,1.0]
[1617703393511,2.90695,2108.0,2107.8,6.01119391]
[1617703393716,2.90695,2108.0,2107.8,1.0]
[1617703395611,5.59795,2108.0,2107.8,1.0]
[1617703397916,2.90695,2108.0,2107.8,1.0]
[1617703400524,2.90695,2108.0,2107.8,3.2979]
[1617703404320,60.8517,2108.1,2107.8,3.2979]
[1617703404921,60.8517,2108.1,2108.0,2.90695]
[1617703406219,60.8517,2108.1,2107.8,5.2979]
[1617703406220,60.8517,2108.1,2107.8,1.0]
[1617703406826,60.8517,2108.1,2108.0,2.90695]
[1617703410024,60.8517,2108.1,2108.0,3.90695]
[1617703410327,60.8517,2108.1,2108.0,1.0]
[1617703410729,55.15937041,2108.1,2108.0,1.0]
[1617703410928,55.15937041,2108.1,2108.0,3.90695]
[1617703414459,55.15937041,2108.1,2108.0,1.0]
[1617703414633,2.90695,2108.3,2108.0,1.0]
[1617703417838,2.90695,2108.3,2108.0,3.3061]
[1617703418238,32.90695,2108.3,2107.8,0.952]
[1617703418442,32.90695,2108.3,2107.5,2.90695]
[1617703418938,2.90695,2107.6,2107.5,2.90695]
[1617703419539,67.0046,2108.6,2107.5,2.90695]
[1617703419739,97.0046,2108.6,2107.5,2.90695]
[1617703420942,2.90695,2107.6,2107.5,2.90695]
[1617703422844,2.90695,2107.6,2107.5,3.84485]
[1617703423547,2.90695,2107.6,2107.5,2.90695]
[1617703424045,2.90695,2107.6,2106.5,2.0]
[1617703424645,2.90695,2107.6,2106.5,2.9554]
[1617703424845,2.90695,2107.6,2107.4,2.90695]
[1617703426847,2.90695,2107.6,2107.3,0.9517]
[1617703427253,2.90695,2107.6,2107.1,2.90695]
[1617703428954,2.90695,2107.6,2107.5,2.90695]
[1617703430260,2.90695,2107.6,2106.7,2.0]
[1617703430860,2.90695,2107.6,2107.5,2.90695]
[1617703431062,2.90695,2107.6,2107.5,3.85915]
[1617703431764,2.90695,2107.6,2107.5,2.90695]
[1617703433870,3.85175,2107.6,2107.5,2.90695]
[1617703434567,2.90695,2107.6,2107.5,2.90695]
[1617703436168,3.84835,2107.6,2107.5,2.90695]
[1617703436478,2.90695,2107.6,2107.5,2.90695]
[1617703444979,5.62365,2107.6,2107.5,2.90695]
[1617703445979,5.62365,2107.6,2107.5,3.86595]
[1617703446481,5.62365,2107.6,2107.5,2.90695]
[1617703448986,2.7167,2107.6,2107.2,2.90695]
[1617703450029,2.9274,2108.3,2107.2,2.90695]
[1617703450189,30.0,2108.5,2107.2,2.90695]
[1617703451097,2.90695,2107.3,2107.2,2.90695]
[1617703451809,2.90695,2107.3,2106.2,6.9892975]
[1617703452198,2.90695,2107.3,2106.2,4.9892975]
[1617703452492,2.90695,2107.3,2106.1,6.98997126]
[1617703452693,2.90695,2107.3,2106.1,2.0]
[1617703452991,2.90695,2106.9,2106.8,2.90695]
[1617703453192,5.78165,2106.9,2106.8,2.90695]
[1617703453592,75.1326,2106.8,2106.1,2.0]
[1617703455195,75.1326,2106.8,2106.7,2.90695]
[1617703456297,75.1326,2106.8,2105.8,2.0]
[1617703457198,75.1326,2106.8,2106.7,2.90695]
[1617703459254,76.0722,2106.8,2106.7,2.90695]
[1617703459628,75.1326,2106.8,2106.7,2.90695]
[1617703460810,75.1326,2106.8,2106.7,3.84695]
[1617703461012,75.1326,2106.8,2106.7,2.90695]
[1617703461210,75.1326,2106.8,2105.9,5.93378925]
[1617703461505,75.1326,2106.8,2106.0,4.99349892]
[1617703462106,75.1326,2106.8,2106.0,7.43239892]
[1617703463112,75.1326,2106.8,2106.7,2.90695]
[1617703464409,0.15420796,2108.2,2106.7,5.89625]
[1617703465312,68.8253,2107.9,2107.4,2.90695]
[1617703465512,68.8253,2107.9,2107.4,4.75045]
[1617703465913,68.8253,2107.9,2107.4,1.8435]
[1617703466613,68.8253,2107.9,2106.1,32.0]
[1617703466914,70.9917,2107.9,2106.1,32.0]
[1617703467116,72.9917,2107.9,2107.2,2.90695]
[1617703467318,72.9917,2107.9,2106.1,32.0]
[1617703467519,30.0,2107.8,2106.1,32.0]
[1617703468117,30.0,2107.8,2104.9,8.32104456]
[1617703468118,30.0,2107.8,2105.9,6.99266672]
[1617703468725,57.1046,2107.2,2105.9,6.99266672]
[1617703469122,57.1046,2107.2,2106.9,2.90695]
[1617703470023,57.1046,2107.2,2106.9,3.84685]
[1617703470222,57.1046,2107.2,2106.9,2.90695]
[1617703471229,2.90695,2107.0,2106.9,2.90695]
[1617703473435,3.85515,2107.0,2106.9,2.90695]
[1617703473626,2.90695,2107.0,2106.9,2.90695]
[1617703474629,3.86275,2107.0,2106.9,2.90695]
[1617703474828,2.90695,2107.0,2106.9,2.90695]
[1617703475835,3.86195,2107.0,2106.9,2.90695]
[1617703477933,2.90695,2107.0,2106.9,2.90695]
[1617703478632,2.90695,2107.0,2106.9,4.88405]
[1617703479038,3.86675,2107.0,2106.9,4.88405]
[1617703480038,2.90695,2107.0,2106.9,2.90695]
[1617703481046,3.86175,2107.0,2106.9,2.90695]
[1617703481541,2.90695,2107.0,2106.9,2.90695]
[1617703481942,2.90695,2107.0,2106.9,3.86045]
[1617703482442,3.84405,2107.0,2106.9,3.86045]
[1617703482644,2.90695,2107.0,2106.9,3.86045]
[1617703483241,2.90695,2107.0,2106.9,2.90695]
[1617703483645,3.85155,2107.0,2106.9,2.90695]
[1617703484947,2.90695,2107.0,2106.9,2.90695]
[1617703486957,3.85565,2107.0,2106.9,2.90695]
[1617703487151,2.90695,2107.0,2106.9,2.90695]
[1617703487352,57.1046,2107.2,2106.9,2.90695]
[1617703488054,57.1046,2107.2,2106.9,9.92003027]
[1617703488353,57.1046,2107.2,2107.0,5.01278805]
[1617703488552,57.1046,2107.2,2107.1,2.0]
[1617703488753,30.9372,2108.9,2107.1,2.9546]
[1617703488953,0.9372,2108.9,2107.1,2.0]
[1617703489154,30.9372,2108.9,2107.1,7.01274677]
[1617703489355,103.8822,2108.9,2107.8,2.90695]
[1617703489557,103.8822,2108.9,2107.8,5.29545]
[1617703490859,103.8822,2108.9,2107.8,2.3885]
[1617703491060,103.8822,2108.9,2107.1,7.01274677]
[1617703491262,103.8822,2108.9,2107.4,2.90695]
[1617703492260,102.945,2108.9,2107.4,2.90695]
[1617703493167,103.8796,2108.9,2107.4,2.90695]
[1617703493369,103.8796,2108.9,2107.8,2.90695]
[1617703493666,103.8796,2108.9,2107.8,4.81975]
[1617703495465,2.90695,2107.9,2107.8,4.81975]
[1617703495666,2.90695,2107.9,2107.8,1.9128]
[1617703498572,2.90695,2107.9,2107.6,2.90695]
[1617703499574,3.84905,2107.9,2107.6,2.90695]
[1617703500873,2.90695,2107.9,2107.6,2.90695]
[1617703501574,2.90695,2107.9,2107.6,3.85685]
[1617703501890,2.90695,2107.9,2107.6,2.90695]
[1617703503574,103.895,2108.9,2107.6,2.90695]
[1617703503877,2.90695,2108.0,2107.9,2.90695]
[1617703505695,103.889,2108.9,2107.9,2.90695]
[1617703505696,73.889,2108.9,2107.9,2.90695]
[1617703505954,72.945,2108.9,2107.9,2.90695]
[1617703506386,72.945,2108.9,2107.9,7.92292679]
[1617703506716,72.945,2108.9,2108.2,2.0]
[1617703506910,72.945,2108.9,2108.2,32.0]
[1617703507146,72.945,2108.9,2108.4,2.0]
[1617703507302,30.9347,2110.8,2108.5,30.0]
[1617703507576,30.9347,2110.8,2108.6,2.0]
[1617703507779,30.9347,2110.8,2108.6,39.87679917]
[1617703507978,30.9347,2110.8,2109.6,5.73935]
[1617703508281,25.24328919,2110.8,2109.6,5.73935]
[1617703508703,2.0,2110.7,2109.6,5.02195]
[1617703508898,27.24328919,2110.7,2109.6,2.3901]
[1617703509381,28.19148919,2110.7,2109.6,2.3901]
[1617703509982,2.90695,2109.7,2109.6,2.3901]
[1617703513083,2.90695,2109.7,2109.3,2.90695]
[1617703513986,2.90695,2109.4,2109.3,2.90695]
[1617703520095,56.0018,2110.4,2109.3,2.90695]
[1617703520313,56.0018,2110.4,2109.3,5.52365]
[1617703521212,50.31337411,2110.4,2109.4,2.0]
[1617703521818,50.31337411,2110.4,2109.4,32.0]
[1617703522178,50.31337411,2110.4,2110.0,5.10835]
[1617703522312,50.31337411,2110.4,2110.1,2.0]
[1617703523126,50.31337411,2110.4,2110.1,32.0]
[1617703523902,2.0,2112.3,2110.1,32.0]
[1617703524103,2.0,2112.2,2110.5,2.90695]
[1617703524305,30.0,2112.1,2110.5,2.90695]
[1617703524502,2.0,2112.0,2110.5,2.90695]
[1617703524904,2.9521,2112.0,2110.5,2.90695]
[1617703525104,30.0,2111.9,2110.5,2.90695]
[1617703525303,32.6707,2111.9,2110.5,2.90695]
[1617703526008,2.90695,2110.6,2110.5,2.90695]
[1617703526311,2.90695,2110.6,2110.1,0.9342]
[1617703526605,2.90695,2110.6,2109.7,2.0]
[1617703526817,2.90695,2110.6,2108.9,4.98702636]
[1617703527007,2.90695,2110.6,2108.7,2.0]
[1617703527536,2.90695,2110.6,2108.3,34.99142097]
[1617703527828,78.8888,2110.0,2108.3,30.9346]
[1617703528005,82.4987,2110.0,2109.1,2.90695]
[1617703528813,81.5534,2110.0,2109.1,2.90695]
[1617703529012,81.5534,2110.0,2108.4,2.0]
[1617703529439,81.5534,2110.0,2108.4,32.0]
[1617703529705,82.491,2110.0,2108.4,32.0]
[1617703529906,81.5534,2110.0,2108.4,32.0]
[1617703530906,82.4904,2110.0,2108.4,32.0]
[1617703531109,81.5534,2110.0,2108.4,32.0]
[1617703532120,81.5534,2110.0,2109.1,2.90695]
[1617703534114,2.90695,2109.2,2109.1,2.90695]
[1617703539126,3.84745,2109.2,2109.1,2.90695]
[1617703539625,3.84745,2109.2,2108.5,32.0]
[1617703539626,3.84745,2109.2,2107.8,30.0]
[1617703539825,3.84745,2109.2,2107.9,2.0]
[1617703540227,0.9405,2109.2,2108.5,2.90695]
[1617703540530,3.0154,2109.3,2108.5,2.90695]
[1617703542227,2.90695,2108.6,2108.5,2.90695]
[1617703545835,5.89195,2108.6,2108.5,2.90695]
[1617703547036,2.985,2108.6,2108.5,2.90695]
[1617703547239,3.0154,2109.3,2108.5,2.90695]
[1617703547436,2.0,2110.4,2108.5,2.90695]
[1617703547645,2.0,2110.4,2108.0,32.0]
[1617703547837,32.0,2110.4,2108.0,32.0]
[1617703548237,82.4936,2110.0,2108.5,2.90695]
[1617703549138,81.5534,2110.0,2108.5,2.90695]
[1617703550143,2.90695,2108.6,2108.5,2.90695]
[1617703550345,2.49195413,2108.6,2108.5,2.90695]
[1617703553145,3.42765413,2108.6,2108.5,2.90695]
[1617703553349,2.49195413,2108.6,2108.5,2.90695]
[1617703554246,3.43135413,2108.6,2108.5,2.90695]
[1617703554446,2.49195413,2108.6,2108.5,2.90695]
[1617703555349,3.43855413,2108.6,2108.5,2.90695]
[1617703556549,2.49195413,2108.6,2108.5,3.86705]
[1617703558254,30.0,2110.7,2109.1,2.90695]
[1617703558572,68.8619,2110.3,2109.1,2.90695]
[1617703560355,2.90695,2109.2,2109.1,2.90695]
[1617703562968,5.05905,2109.2,2108.1,32.0]
[1617703564271,2.1521,2109.2,2108.4,2.90695]
[1617703566366,2.90695,2108.5,2108.4,2.90695]
[1617703566765,2.90695,2108.5,2108.4,3.85035]
[1617703568067,2.90695,2108.5,2108.4,2.90695]
[1617703569169,2.90695,2108.5,2108.4,3.85645]
[1617703569370,2.90695,2108.5,2108.4,2.90695]
[1617703574379,2.8566,2109.8,2108.9,2.90695]
[1617703574642,30.0,2110.2,2108.9,2.90695]
[1617703575180,32.0,2110.7,2108.9,2.90695]
[1617703575377,30.0,2110.2,2108.9,2.90695]
[1617703575677,30.0,2110.2,2108.2,32.0]
[1617703575876,27.95981897,2110.1,2108.2,32.0]
[1617703576279,29.85111897,2110.1,2108.2,32.0]
[1617703577182,29.85111897,2110.1,2108.2,2.0]
[1617703577578,29.85111897,2110.1,2107.8,2.0]
[1617703577979,29.85111897,2110.1,2107.8,32.0]
[1617703578182,30.78521897,2110.1,2108.1,6.99863881]
[1617703578480,30.78521897,2110.1,2108.5,2.90695]
[1617703580384,2.90695,2108.6,2108.5,2.90695]
[1617703581793,2.90695,2108.6,2108.1,6.99863881]
[1617703581985,2.90695,2108.6,2108.1,4.99863881]
[1617703582486,4.93055,2108.2,2108.1,4.99863881]
[1617703582688,4.93055,2108.2,2108.0,7.90578746]
[1617703583386,4.93055,2108.2,2108.0,9.90578746]
[1617703583587,2.90695,2108.2,2108.0,9.90578746]
[1617703587691,2.90695,2108.2,2108.1,4.99898947]
[1617703588092,2.90695,2108.2,2108.0,4.90695]
[1617703588691,2.49189645,2108.2,2108.0,11.02014933]
[1617703589091,2.49189645,2108.2,2108.0,4.90695]
[1617703589892,3.45119645,2108.2,2108.0,4.90695]
[1617703590994,2.49189645,2108.2,2108.0,4.90695]
[1617703591995,3.44909645,2108.2,2108.0,5.84945]
[1617703592700,2.49189645,2108.2,2108.0,5.84945]
[1617703593228,2.49189645,2108.2,2108.0,4.90695]
[1617703594499,0.9585,2108.2,2108.0,4.90695]
[1617703594699,2.90695,2108.4,2108.0,6.94775]
[1617703595899,2.90695,2108.4,2108.3,7.25743906]
[1617703596100,2.90695,2108.4,2108.3,8.20583906]
[1617703596701,2.90695,2108.4,2108.3,11.11278906]
[1617703597700,2.90695,2108.4,2108.3,10.16438906]
[1617703598705,2.90695,2108.4,2108.3,11.10648906]
[1617703598907,2.90695,2108.4,2108.3,10.16438906]
[1617703600307,2.4699,2109.6,2108.3,10.16438906]
[1617703600716,27.95981897,2110.0,2108.9,5.02444679]
[1617703600913,71.7164,2109.3,2108.9,5.02444679]
[1617703601210,71.7164,2109.3,2109.0,5.0244272]
[1617703602737,2.90695,2109.1,2109.0,5.0244272]
[1617703603209,2.90695,2109.1,2109.0,5.9835272]
[1617703603421,3.86245,2109.1,2109.0,5.0244272]
[1617703604313,3.86245,2109.1,2109.0,5.9621272]
[1617703604913,3.86245,2109.1,2109.0,5.0244272]
[1617703605234,2.90695,2109.1,2109.0,5.0244272]
[1617703606114,2.90695,2109.1,2109.0,5.9840272]
[1617703606713,2.90695,2109.1,2109.0,5.0244272]
[1617703606916,2.90695,2109.1,2108.9,5.02358504]
[1617703610122,2.90695,2109.1,2109.0,5.02408138]
[1617703610529,2.90695,2109.1,2108.9,5.0241456]
[1617703610928,2.90695,2109.1,2109.0,5.02402571]
[1617703612729,2.90695,2109.1,2108.9,6.14008431]
[1617703613431,3.85105,2109.1,2108.9,6.14008431]
[1617703613728,2.90695,2109.1,2108.9,6.14008431]
[1617703614429,2.90695,2109.1,2108.5,7.25646328]
[1617703614632,2.90695,2108.6,2108.5,7.25646328]
[1617703614831,5.24515,2108.6,2108.5,7.25646328]
[1617703615030,5.24515,2108.6,2108.5,4.82502141]
[1617703615334,5.24515,2108.6,2107.8,2.90695]
[1617703615731,5.24515,2108.6,2107.8,12.73668308]
[1617703616131,5.24515,2108.6,2107.8,5.47795]
[1617703616731,2.90695,2107.9,2107.8,5.47795]
[1617703617533,2.90695,2107.9,2107.8,2.90695]
[1617703617742,2.90695,2107.9,2107.8,3.85835]
[1617703618237,2.90695,2107.9,2107.8,2.90695]
[1617703619735,2.90695,2107.9,2107.8,10.16881513]
[1617703620533,2.90695,2107.9,2107.8,3.84925]
[1617703621133,2.90695,2107.9,2107.8,2.90695]
[1617703622133,2.90695,2107.9,2107.8,3.84205]
[1617703622335,3.84635,2107.9,2107.8,3.84205]
[1617703622535,2.90695,2107.9,2107.8,3.84205]
[1617703622735,2.90695,2107.9,2107.8,2.90695]
[1617703626243,2.90695,2107.9,2107.8,10.15987843]
[1617703627345,2.90695,2107.9,2107.8,2.90695]
[1617703627651,3.84985,2107.9,2107.8,2.90695]
[1617703628046,2.90695,2107.9,2107.8,2.90695]
[1617703629547,59.70042752,2108.5,2107.8,2.90695]
[1617703630046,59.70042752,2108.5,2108.4,5.02132715]
[1617703630448,59.70042752,2108.5,2108.3,5.02035454]
[1617703630747,59.70042752,2108.5,2108.4,2.90695]
[1617703631957,60.65032752,2108.5,2108.4,2.90695]
[1617703632853,62.60737752,2108.5,2108.4,2.90695]
[1617703633753,63.56877752,2108.5,2108.4,2.90695]
[1617703634752,62.60737752,2108.5,2108.4,2.90695]
[1617703639259,62.60737752,2108.5,2108.3,5.02035454]
[1617703640872,62.60737752,2108.5,2108.3,7.92730454]
[1617703642576,62.60737752,2108.5,2108.3,2.90695]
[1617703643268,63.55017752,2108.5,2108.3,2.90695]
[1617703643465,62.60737752,2108.5,2108.3,2.90695]
[1617703649170,62.60737752,2108.5,2108.3,4.73015]
[1617703649470,62.60737752,2108.5,2108.3,9.74801878]
[1617703649669,59.70042752,2108.5,2108.3,9.74801878]
[1617703650671,54.00917781,2108.5,2108.3,9.74801878]
[1617703651776,54.00917781,2108.5,2108.4,5.01760673]
[1617703652981,56.91612781,2108.5,2108.3,9.04410852]
[1617703653279,56.91612781,2108.5,2108.4,5.02136249]
[1617703653690,56.91612781,2108.5,2108.3,2.90695]
[1617703654487,56.91612781,2108.5,2108.4,5.02141168]
[1617703656588,56.91612781,2108.5,2108.3,5.02242934]
[1617703656589,59.84142781,2108.5,2108.3,5.02242934]
[1617703656785,59.84142781,2108.5,2108.1,6.13852474]
[1617703656786,59.84142781,2108.5,2108.1,5.02297619]
[1617703656992,2.90695,2108.2,2108.1,5.02297619]
[1617703657594,2.90695,2108.2,2108.0,5.0231203]
[1617703658188,2.90695,2108.2,2107.9,5.02320118]
[1617703658589,2.90695,2108.2,2107.8,4.62633907]
[1617703658989,2.90695,2107.9,2107.7,9.04669659]
[1617703659590,2.90695,2107.9,2107.7,2.90695]
[1617703659889,2.90695,2107.9,2107.7,9.04669319]
[1617703660790,2.90695,2107.9,2107.8,6.13944787]
[1617703661191,3.84585,2107.9,2107.8,6.13944787]
[1617703661392,2.90695,2107.9,2107.8,6.13944787]
[1617703665500,2.90695,2107.9,2107.7,6.13970384]
[1617703666199,2.90695,2107.9,2107.6,6.13428312]
[1617703668101,2.90695,2107.9,2107.5,9.04213692]
[1617703669003,2.90695,2107.6,2107.5,9.04213692]
[1617703669405,2.90695,2107.6,2107.5,2.90695]
[1617703669803,2.90695,2107.6,2107.5,9.04211579]
[1617703670004,2.90695,2107.6,2107.5,2.90695]
[1617703675510,2.90695,2107.6,2107.5,57.98145]
[1617703675710,2.90695,2107.6,2107.5,55.0745]
[1617703678419,2.90695,2107.6,2107.5,61.20812901]
[1617703678637,2.90695,2107.6,2107.5,6.13362901]
[1617703679146,2.90695,2107.6,2107.4,2.90695]
[1617703680312,77.3467,2109.0,2107.4,4.90695]
[1617703680813,77.3467,2109.0,2107.9,7.49806488]
[1617703680814,2.0,2108.9,2107.9,7.49806488]
[1617703681039,2.0,2108.9,2108.0,2.90695]
[1617703681439,2.0,2108.9,2108.0,7.92474734]
[1617703681919,2.0,2108.9,2108.1,5.01777902]
[1617703682120,2.9357,2108.9,2108.1,5.01777902]
[1617703682322,2.0,2108.9,2108.1,5.01777902]
[1617703683123,3.85585,2108.2,2108.1,5.01777902]
[1617703683323,3.85585,2108.2,2108.0,7.58885343]
[1617703683623,2.90695,2108.2,2108.0,7.58885343]
[1617703684123,2.90695,2108.2,2108.0,7.58881616]
[1617703684925,2.90695,2108.2,2108.0,2.571]
[1617703686831,2.90695,2108.2,2107.8,5.01838646]
[1617703687034,2.90695,2107.9,2107.8,5.01838646]
[1617703687231,5.77555,2107.9,2107.8,5.01838646]
[1617703687633,5.77555,2107.9,2107.6,7.92571957]
[1617703688832,5.77555,2107.9,2107.6,2.90695]
[1617703689032,5.77555,2107.9,2107.6,7.92497772]
[1617703689232,79.41635,2107.9,2107.6,7.92497772]
[1617703690933,79.41635,2107.9,2107.6,2.90695]
[1617703691132,80.35865,2107.9,2107.6,2.90695]
[1617703691547,79.41635,2107.9,2107.6,2.90695]
[1617703693734,80.35215,2107.9,2107.6,7.92497586]
[1617703693934,79.41635,2107.9,2107.6,7.92497586]
[1617703695737,80.36515,2107.9,2107.6,7.92497586]
[1617703696140,79.41635,2107.9,2107.6,7.92497586]
[1617703696741,79.41635,2107.9,2107.6,5.01802586]
[1617703699944,79.41635,2107.9,2107.8,5.02123218]
[1617703701044,79.41635,2107.9,2107.1,2.571]
[1617703701244,79.41635,2107.9,2107.6,6.13707217]
[1617703708854,79.41635,2107.9,2107.8,56.0967]
[1617703710356,79.41635,2107.9,2107.8,55.6168]
[1617703712055,79.41635,2107.9,2107.6,6.13707217]
[1617703716963,79.41635,2107.9,2107.7,5.01994172]
[1617703719174,79.41635,2107.9,2107.6,11.15724193]
[1617703722575,79.41635,2107.9,2107.7,5.02059393]
[1617703727779,76.54775,2107.9,2107.7,5.02059393]
[1617703728181,2.90695,2107.9,2107.7,5.02059393]
[1617703728984,2.90695,2107.9,2107.8,5.02051746]
[1617703729683,2.90695,2107.9,2107.7,5.02055696]
[1617703730084,2.90695,2107.9,2107.8,5.02047066]
[1617703732288,2.90695,2107.9,2107.7,5.02155977]
[1617703733288,2.90695,2107.9,2107.8,5.02369833]
[1617703734792,2.90695,2107.9,2107.7,5.02371023]
[1617703741603,2.90695,2107.9,2107.8,5.02372488]
[1617703743100,3.86735,2107.9,2107.8,5.02372488]
[1617703743301,2.90695,2107.9,2107.8,5.02372488]
[1617703744404,2.90695,2107.9,2107.3,2.90695]
[1617703744405,2.90695,2107.9,2107.4,7.26903628]
[1617703745404,2.90695,2107.5,2107.4,7.26903628]
[1617703750611,2.90695,2107.5,2106.4,2.0]
[1617703750612,2.90695,2107.5,2107.2,7.26960961]
[1617703751034,4.90695,2107.5,2107.2,7.26960961]
[1617703751311,4.90695,2107.5,2106.8,8.38801109]
[1617703751312,4.90695,2107.5,2107.3,5.17729051]
[1617703751712,4.90695,2107.5,2107.3,5.03361044]
[1617703752112,32.0,2107.4,2107.3,5.03361044]
[1617703752411,32.0,2107.4,2107.2,5.03416018]
[1617703752815,32.0,2107.4,2107.0,5.03419856]
[1617703753425,2.90695,2107.1,2107.0,5.03419856]
[1617703753612,35.38335,2107.1,2107.0,5.03419856]
[1617703755214,35.38335,2107.1,2106.3,7.27142995]
[1617703755416,2.90695,2106.4,2106.3,7.27142995]
[1617703756314,2.90695,2106.4,2106.1,2.0]
[1617703757014,2.90695,2106.4,2106.1,10.39034174]
[1617703757422,2.90695,2106.4,2106.3,2.90695]
[1617703761920,2.90695,2106.4,2106.3,6.13225492]
[1617703763221,2.90695,2106.4,2106.3,8.56405492]
[1617703763720,2.90695,2106.4,2106.3,5.33875]
[1617703764621,2.90695,2106.4,2106.3,7.33875]
[1617703765121,2.0,2107.7,2106.3,7.33875]
[1617703765521,2.0,2107.7,2106.6,2.90695]
[1617703765723,2.0,2107.7,2106.7,5.01736946]
[1617703765922,0.9484,2108.0,2106.7,5.01736946]
[1617703766122,30.0,2108.6,2106.7,5.01736946]
[1617703766322,2.0,2108.5,2106.7,5.01736946]
[1617703766523,62.4354,2107.9,2106.8,58.836]
[1617703767225,63.3973,2107.9,2106.8,58.836]
[1617703767425,93.3973,2107.9,2106.8,58.836]
[1617703767725,2.90695,2106.9,2106.6,7.92434054]
[1617703768425,2.90695,2106.9,2106.6,5.01739054]
[1617703768629,2.90695,2106.9,2106.3,4.4318]
[1617703768630,2.90695,2106.9,2106.5,5.01705224]
[1617703769330,2.90695,2106.9,2106.4,5.01725934]
[1617703769529,2.90695,2106.5,2106.4,5.01725934]
[1617703769736,2.90695,2106.5,2106.3,2.0]
[1617703769945,2.90695,2106.5,2106.2,6.13220587]
[1617703770149,5.15045,2106.5,2106.4,5.01725526]
[1617703770347,5.15045,2106.5,2106.1,7.91741149]
[1617703770931,5.15045,2106.5,2106.1,8.86571149]
[1617703771433,5.15045,2106.5,2106.1,5.95876149]
[1617703771633,2.90695,2106.2,2106.1,5.95876149]
[1617703772234,2.90695,2106.2,2106.1,0.9483]
[1617703773437,2.90695,2106.2,2106.1,5.95964668]